[Event "Titled Tuesday Blitz December 13 Late 2022"]
[White "Bortnyk, Mykola"]
[Black "Vlassov, Nikolai"]
[WhiteFideId "14120836"]
[BlackFideId "4103360"]
[WhiteElo "2582"]
[BlackElo "2324"]
[Result "1-0"]
[Round "02"]
[TimeControl "180+1"]
[Date "2022.12.13"]
[WhiteClock "0:00:12"]
[BlackClock "0:00:04"]

1. e4 {[%clk 0:03:00]}  Nc6 {[%clk 0:02:57]} 2. Nf3 {[%clk 0:03:00]}  d5 {[%clk 0:02:56]} 3. exd5 {[%clk 0:03:01]}  Qxd5 {[%clk 0:02:57]} 4. Nc3 {[%clk 0:03:02]}  Qa5 {[%clk 0:02:57]} 5. Bb5 {[%clk 0:02:55]}  Bd7 {[%clk 0:02:57]} 6. b4 {[%clk 0:02:54]}  Qxb4 {[%clk 0:02:55]} 7. Rb1 {[%clk 0:02:54]}  Qd6 {[%clk 0:02:55]} 8. O-O {[%clk 0:02:53]}  Nf6 {[%clk 0:02:54]} 9. Rb3 {[%clk 0:02:48]}  a6 {[%clk 0:02:45]} 10. Ba3 {[%clk 0:02:43]}  Qf4 {[%clk 0:02:41]} 11. g3 {[%clk 0:02:43]}  Qg4 {[%clk 0:02:33]} 12. Be2 {[%clk 0:02:42]}  b5 {[%clk 0:02:22]} 13. Re1 {[%clk 0:02:31]}  Qh5 {[%clk 0:02:00]} 14. d4 {[%clk 0:02:27]}  Bg4 {[%clk 0:01:52]} 15. d5 {[%clk 0:02:18]}  Na5 {[%clk 0:01:48]} 16. Rb4 {[%clk 0:02:01]}  Rd8 {[%clk 0:01:27]} 17. Nxb5 {[%clk 0:01:45]}  axb5 {[%clk 0:01:24]} 18. Rxb5 {[%clk 0:01:45]}  Nc4 {[%clk 0:01:21]} 19. Bxc4 {[%clk 0:01:05]}  Bxf3 {[%clk 0:01:20]} 20. d6 {[%clk 0:01:05]}  Bxd1 {[%clk 0:01:14]} 21. dxe7 {[%clk 0:01:05]}  c5 {[%clk 0:00:42]} 22. Rxc5 {[%clk 0:00:42]}  Qxc5 {[%clk 0:00:17]} 23. Bxc5 {[%clk 0:00:43]}  Be2 {[%clk 0:00:13]} 24. Bb5+ {[%clk 0:00:29]}  Bxb5 {[%clk 0:00:12]} 25. exf8=Q+ {[%clk 0:00:29]}  Kd7 {[%clk 0:00:12]} 26. Qxf7+ {[%clk 0:00:22]}  Kc6 {[%clk 0:00:13]} 27. Qxg7 {[%clk 0:00:19]}  Kxc5 {[%clk 0:00:11]} 28. Qxf6 {[%clk 0:00:19]}  Rhe8 {[%clk 0:00:10]} 29. Re5+ {[%clk 0:00:16]}  Kb4 {[%clk 0:00:09]} 30. Qf4+ {[%clk 0:00:15]}  Bc4 {[%clk 0:00:09]} 31. a3+ {[%clk 0:00:15]}  Kc3 {[%clk 0:00:08]} 32. Re3+ {[%clk 0:00:11]}  Rxe3 {[%clk 0:00:06]} 33. Qxe3+ {[%clk 0:00:11]}  Kb2 {[%clk 0:00:05]} 34. Qb6+ {[%clk 0:00:11]}  Kxc2 {[%clk 0:00:04]} 35. Qxd8 {[%clk 0:00:12]} 1-0


[Site "https://www.chess.com"]

[Event "Titled Tuesday Blitz December 13 Late 2022"]
[White "Bryant, Todd"]
[Black "Tatarinov, Dmitry"]
[WhiteFideId "2031299"]
[BlackFideId "24160067"]
[WhiteElo "2340"]
[BlackElo "2326"]
[Result "0-1"]
[Round "02"]
[TimeControl "180+1"]
[Date "2022.12.14"]
[WhiteClock "0:00:16"]
[BlackClock "0:01:18"]

1. e4 {[%clk 0:03:00]}  c5 {[%clk 0:02:59]} 2. Nf3 {[%clk 0:03:01]}  d6 {[%clk 0:02:58]} 3. d4 {[%clk 0:03:01]}  cxd4 {[%clk 0:02:59]} 4. Nxd4 {[%clk 0:03:02]}  Nf6 {[%clk 0:02:59]} 5. Nc3 {[%clk 0:03:03]}  a6 {[%clk 0:03:00]} 6. Bg5 {[%clk 0:03:03]}  e6 {[%clk 0:03:00]} 7. f4 {[%clk 0:03:03]}  Nbd7 {[%clk 0:03:01]} 8. Qe2 {[%clk 0:03:02]}  Qc7 {[%clk 0:02:58]} 9. O-O-O {[%clk 0:03:02]}  Be7 {[%clk 0:02:44]} 10. g4 {[%clk 0:02:59]}  O-O {[%clk 0:02:35]} 11. Bxf6 {[%clk 0:02:25]}  Bxf6 {[%clk 0:02:33]} 12. g5 {[%clk 0:02:24]}  Bxd4 {[%clk 0:02:31]} 13. Rxd4 {[%clk 0:02:25]}  b5 {[%clk 0:02:26]} 14. a3 {[%clk 0:02:21]}  Bb7 {[%clk 0:02:26]} 15. Bg2 {[%clk 0:02:21]}  Rac8 {[%clk 0:02:25]} 16. Rhd1 {[%clk 0:02:22]}  Nb6 {[%clk 0:02:08]} 17. Rxd6 {[%clk 0:02:17]}  Nc4 {[%clk 0:02:08]} 18. Rd7 {[%clk 0:02:13]}  Qxf4+ {[%clk 0:02:08]} 19. Kb1 {[%clk 0:02:13]}  Bc6 {[%clk 0:02:06]} 20. R7d3 {[%clk 0:01:47]}  a5 {[%clk 0:02:01]} 21. Rh3 {[%clk 0:01:17]}  g6 {[%clk 0:01:58]} 22. Qe1 {[%clk 0:01:04]}  b4 {[%clk 0:01:54]} 23. axb4 {[%clk 0:00:57]}  axb4 {[%clk 0:01:54]} 24. Ne2 {[%clk 0:00:56]}  Qe5 {[%clk 0:01:55]} 25. Nd4 {[%clk 0:00:56]}  Qxg5 {[%clk 0:01:35]} 26. Qxb4 {[%clk 0:00:40]}  Qxg2 {[%clk 0:01:32]} 27. Rc3 {[%clk 0:00:32]}  Ne5 {[%clk 0:01:26]} 28. Qd6 {[%clk 0:00:28]}  Qxe4 {[%clk 0:01:21]} 29. Rxc6 {[%clk 0:00:16]}  Nxc6 {[%clk 0:01:18]} 0-1


[Site "https://www.chess.com"]

[Event "Titled Tuesday Blitz December 13 Late 2022"]
[White "Budisavljevic, Luka"]
[Black "Melkumyan, Hrant"]
[WhiteFideId "960047"]
[BlackFideId "13302485"]
[WhiteElo "2424"]
[BlackElo "2604"]
[Result "0-1"]
[Round "02"]
[TimeControl "180+1"]
[Date "2022.12.13"]
[WhiteClock "0:00:44"]
[BlackClock "0:00:15"]

1. d4 {[%clk 0:03:00]}  Nf6 {[%clk 0:02:53]} 2. Nf3 {[%clk 0:03:01]}  d5 {[%clk 0:02:52]} 3. Bf4 {[%clk 0:03:02]}  c5 {[%clk 0:02:49]} 4. e3 {[%clk 0:03:02]}  Nc6 {[%clk 0:02:49]} 5. Nbd2 {[%clk 0:03:03]}  e6 {[%clk 0:02:49]} 6. c3 {[%clk 0:03:02]}  Be7 {[%clk 0:02:49]} 7. Ne5 {[%clk 0:03:02]}  Nxe5 {[%clk 0:02:45]} 8. dxe5 {[%clk 0:03:03]}  Nd7 {[%clk 0:02:44]} 9. Bd3 {[%clk 0:03:01]}  b6 {[%clk 0:02:37]} 10. Nf3 {[%clk 0:02:57]}  g5 {[%clk 0:02:32]} 11. Bg3 {[%clk 0:02:57]}  h5 {[%clk 0:02:32]} 12. h4 {[%clk 0:02:55]}  g4 {[%clk 0:02:32]} 13. Nd2 {[%clk 0:02:55]}  Bb7 {[%clk 0:02:32]} 14. e4 {[%clk 0:02:50]}  c4 {[%clk 0:02:26]} 15. Bc2 {[%clk 0:02:43]}  Nc5 {[%clk 0:02:22]} 16. Qe2 {[%clk 0:02:30]}  dxe4 {[%clk 0:02:10]} 17. O-O-O {[%clk 0:02:30]}  Nd3+ {[%clk 0:02:03]} 18. Kb1 {[%clk 0:02:29]}  Qd5 {[%clk 0:02:03]} 19. Rhe1 {[%clk 0:02:07]}  Qb5 {[%clk 0:01:39]} 20. Bxd3 {[%clk 0:01:55]}  exd3 {[%clk 0:01:32]} 21. Qe3 {[%clk 0:01:55]}  O-O-O {[%clk 0:01:30]} 22. Qf4 {[%clk 0:01:48]}  Bd5 {[%clk 0:01:30]} 23. Ka1 {[%clk 0:01:45]}  Rd7 {[%clk 0:01:22]} 24. Rc1 {[%clk 0:01:33]}  Kb7 {[%clk 0:01:19]} 25. Rb1 {[%clk 0:01:31]}  Rc7 {[%clk 0:01:00]} 26. Rec1 {[%clk 0:01:05]}  Rh7 {[%clk 0:01:00]} 27. Re1 {[%clk 0:01:04]}  Bf8 {[%clk 0:01:00]} 28. Red1 {[%clk 0:01:01]}  Bh6 {[%clk 0:00:59]} 29. Qd4 {[%clk 0:01:01]}  Bxg2 {[%clk 0:00:54]} 30. Bf4 {[%clk 0:01:01]}  Bxf4 {[%clk 0:00:47]} 31. Qxf4 {[%clk 0:01:01]}  Bd5 {[%clk 0:00:48]} 32. Rg1 {[%clk 0:01:01]}  Qc6 {[%clk 0:00:47]} 33. Rgc1 {[%clk 0:00:56]}  a5 {[%clk 0:00:40]} 34. b3 {[%clk 0:00:57]}  Ka7 {[%clk 0:00:36]} 35. b4 {[%clk 0:00:52]}  a4 {[%clk 0:00:28]} 36. b5 {[%clk 0:00:52]}  Qc5 {[%clk 0:00:28]} 37. Rb4 {[%clk 0:00:53]}  a3 {[%clk 0:00:28]} 38. Qf6 {[%clk 0:00:47]}  Kb7 {[%clk 0:00:24]} 39. Rcb1 {[%clk 0:00:45]}  Qe7 {[%clk 0:00:19]} 40. Qf4 {[%clk 0:00:45]}  Qc5 {[%clk 0:00:16]} 41. Ra4 {[%clk 0:00:44]}  Rh8 {[%clk 0:00:15]} 42. Qf6 {[%clk 0:00:43]}  Rhc8 {[%clk 0:00:15]} 43. Qf4 {[%clk 0:00:43]}  Kb8 {[%clk 0:00:15]} 44. Ne4 {[%clk 0:00:43]}  Bxe4 {[%clk 0:00:14]} 45. Qxe4 {[%clk 0:00:44]}  Qd5 {[%clk 0:00:15]} 46. Qe3 {[%clk 0:00:44]}  Kb7 {[%clk 0:00:15]} 47. Ra6 {[%clk 0:00:44]}  Rc5 {[%clk 0:00:15]} 48. Rb4 {[%clk 0:00:44]}  d2 {[%clk 0:00:15]} 0-1


[Site "https://www.chess.com"]

[Event "Titled Tuesday Blitz December 13 Late 2022"]
[White "Castillo Pena, Patricia Evarista"]
[Black "Goryachkina, Aleksandra"]
[WhiteFideId "6412106"]
[BlackFideId "4147103"]
[WhiteElo "1919"]
[BlackElo "2484"]
[Result "0-1"]
[Round "02"]
[TimeControl "180+1"]
[Date "2022.12.14"]
[WhiteClock "0:00:05"]
[BlackClock "0:00:41"]

1. d4 {[%clk 0:02:58]}  Nf6 {[%clk 0:02:59]} 2. Nf3 {[%clk 0:02:58]}  d5 {[%clk 0:02:59]} 3. e3 {[%clk 0:02:58]}  Bf5 {[%clk 0:02:57]} 4. c4 {[%clk 0:02:57]}  c6 {[%clk 0:02:57]} 5. Qb3 {[%clk 0:02:57]}  Qb6 {[%clk 0:02:52]} 6. Nbd2 {[%clk 0:02:48]}  e6 {[%clk 0:02:49]} 7. c5 {[%clk 0:02:47]}  Qc7 {[%clk 0:02:48]} 8. Be2 {[%clk 0:02:45]}  h6 {[%clk 0:02:47]} 9. O-O {[%clk 0:02:44]}  Nbd7 {[%clk 0:02:48]} 10. Qd1 {[%clk 0:02:37]}  Be7 {[%clk 0:02:45]} 11. b4 {[%clk 0:02:37]}  a6 {[%clk 0:02:44]} 12. a4 {[%clk 0:02:37]}  O-O {[%clk 0:02:44]} 13. Bb2 {[%clk 0:02:35]}  Ne4 {[%clk 0:02:38]} 14. Qb3 {[%clk 0:02:32]}  Nxd2 {[%clk 0:02:20]} 15. Nxd2 {[%clk 0:02:33]}  e5 {[%clk 0:02:21]} 16. Rfd1 {[%clk 0:02:15]}  exd4 {[%clk 0:02:16]} 17. exd4 {[%clk 0:02:15]}  Rfe8 {[%clk 0:02:15]} 18. Bf3 {[%clk 0:02:13]}  Nf8 {[%clk 0:02:10]} 19. Nf1 {[%clk 0:02:08]}  Ne6 {[%clk 0:02:03]} 20. Ng3 {[%clk 0:02:00]}  Bg6 {[%clk 0:02:02]} 21. Rac1 {[%clk 0:01:39]}  Bg5 {[%clk 0:01:58]} 22. Ra1 {[%clk 0:01:25]}  Bf6 {[%clk 0:01:55]} 23. b5 {[%clk 0:01:09]}  Qd7 {[%clk 0:01:50]} 24. Bg4 {[%clk 0:00:54]}  Re7 {[%clk 0:01:26]} 25. Nf5 {[%clk 0:00:51]}  Bxf5 {[%clk 0:01:25]} 26. Bxf5 {[%clk 0:00:51]}  g6 {[%clk 0:01:25]} 27. Bh3 {[%clk 0:00:51]}  Rae8 {[%clk 0:01:22]} 28. Rac1 {[%clk 0:00:32]}  Qc7 {[%clk 0:01:05]} 29. b6 {[%clk 0:00:30]}  Qf4 {[%clk 0:01:02]} 30. Qg3 {[%clk 0:00:25]}  Bh4 {[%clk 0:00:48]} 31. Qxf4 {[%clk 0:00:22]}  Nxf4 {[%clk 0:00:49]} 32. Bg4 {[%clk 0:00:17]}  Nd3 {[%clk 0:00:42]} 33. Rb1 {[%clk 0:00:05]}  Nxb2 {[%clk 0:00:41]} 0-1


[Site "https://www.chess.com"]

[Event "Titled Tuesday Blitz December 13 Late 2022"]
[White "Chigaev, Maksim"]
[Black "Fernandez De La Vara, Arnaldo"]
[WhiteFideId "4108116"]
[BlackFideId "3518388"]
[WhiteElo "2542"]
[BlackElo "2387"]
[Result "1-0"]
[Round "02"]
[TimeControl "180+1"]
[Date "2022.12.13"]
[WhiteClock "0:00:46"]
[BlackClock "0:00:01"]

1. Nf3 {[%clk 0:03:00]}  c5 {[%clk 0:03:00]} 2. e4 {[%clk 0:03:00]}  e6 {[%clk 0:03:00]} 3. b3 {[%clk 0:02:59]}  a6 {[%clk 0:03:00]} 4. Bb2 {[%clk 0:02:59]}  Nc6 {[%clk 0:03:01]} 5. c4 {[%clk 0:02:58]}  Nf6 {[%clk 0:03:00]} 6. e5 {[%clk 0:02:56]}  Ng8 {[%clk 0:02:53]} 7. g3 {[%clk 0:02:50]}  d6 {[%clk 0:02:30]} 8. exd6 {[%clk 0:02:50]}  Nf6 {[%clk 0:02:29]} 9. Bg2 {[%clk 0:02:49]}  Bxd6 {[%clk 0:02:27]} 10. O-O {[%clk 0:02:49]}  O-O {[%clk 0:02:22]} 11. d4 {[%clk 0:02:49]}  cxd4 {[%clk 0:02:08]} 12. Nxd4 {[%clk 0:02:50]}  Be5 {[%clk 0:01:57]} 13. Bxc6 {[%clk 0:02:23]}  bxc6 {[%clk 0:01:55]} 14. Re1 {[%clk 0:02:24]}  c5 {[%clk 0:01:15]} 15. Rxe5 {[%clk 0:02:18]}  cxd4 {[%clk 0:01:15]} 16. Qxd4 {[%clk 0:02:14]}  Qc7 {[%clk 0:00:45]} 17. Rg5 {[%clk 0:01:57]}  e5 {[%clk 0:00:27]} 18. Qxe5 {[%clk 0:01:55]}  Qxe5 {[%clk 0:00:28]} 19. Rxe5 {[%clk 0:01:48]}  Rd8 {[%clk 0:00:25]} 20. Nc3 {[%clk 0:01:46]}  Bb7 {[%clk 0:00:22]} 21. Rae1 {[%clk 0:01:22]}  Rd2 {[%clk 0:00:19]} 22. R5e2 {[%clk 0:01:22]}  Rd3 {[%clk 0:00:16]} 23. Na4 {[%clk 0:01:15]}  Bc6 {[%clk 0:00:07]} 24. Nc5 {[%clk 0:01:12]}  Rd6 {[%clk 0:00:04]} 25. Be5 {[%clk 0:01:13]}  Rdd8 {[%clk 0:00:03]} 26. h3 {[%clk 0:01:05]}  h6 {[%clk 0:00:03]} 27. Bxf6 {[%clk 0:00:59]}  gxf6 {[%clk 0:00:04]} 28. g4 {[%clk 0:00:57]}  a5 {[%clk 0:00:04]} 29. Ne4 {[%clk 0:00:52]}  Kg7 {[%clk 0:00:03]} 30. Ng3 {[%clk 0:00:52]}  Rd3 {[%clk 0:00:02]} 31. Kh2 {[%clk 0:00:48]}  Rf3 {[%clk 0:00:01]} 32. Nf5+ {[%clk 0:00:46]}  Kf8 {[%clk 0:00:01]} 33. Nd4 {[%clk 0:00:46]} 1-0


[Site "https://www.chess.com"]

[Event "Titled Tuesday Blitz December 13 Late 2022"]
[White "Chlpik, Martin"]
[Black "Gutkin, Ilya"]
[WhiteFideId "14923351"]
[BlackFideId "16203470"]
[WhiteElo "2109"]
[BlackElo "2265"]
[Result "1-0"]
[Round "02"]
[TimeControl "180+1"]
[Date "2022.12.14"]
[WhiteClock "0:00:12"]
[BlackClock "0:00:13"]

1. d4 {[%clk 0:03:00]}  e6 {[%clk 0:02:59]} 2. c4 {[%clk 0:03:00]}  b6 {[%clk 0:02:59]} 3. Nc3 {[%clk 0:03:00]}  Bb7 {[%clk 0:02:59]} 4. e4 {[%clk 0:02:57]}  Bb4 {[%clk 0:02:58]} 5. Bd3 {[%clk 0:02:57]}  f5 {[%clk 0:02:58]} 6. exf5 {[%clk 0:02:56]}  Bxg2 {[%clk 0:02:59]} 7. Qh5+ {[%clk 0:02:51]}  Kf8 {[%clk 0:02:59]} 8. Ne2 {[%clk 0:02:37]}  Nf6 {[%clk 0:02:48]} 9. Qh4 {[%clk 0:02:30]}  Bxh1 {[%clk 0:02:48]} 10. Nf4 {[%clk 0:02:19]}  Kg8 {[%clk 0:02:18]} 11. Bd2 {[%clk 0:02:10]}  Bf3 {[%clk 0:02:14]} 12. Qg3 {[%clk 0:02:07]}  Bb7 {[%clk 0:02:03]} 13. O-O-O {[%clk 0:02:02]}  Nc6 {[%clk 0:01:56]} 14. Rg1 {[%clk 0:02:01]}  Bf8 {[%clk 0:01:55]} 15. fxe6 {[%clk 0:01:53]}  Nxd4 {[%clk 0:01:53]} 16. Ncd5 {[%clk 0:01:49]}  dxe6 {[%clk 0:01:39]} 17. Bc3 {[%clk 0:01:30]}  c5 {[%clk 0:01:22]} 18. Nxe6 {[%clk 0:01:25]}  Nxe6 {[%clk 0:01:08]} 19. Nxf6+ {[%clk 0:01:17]}  Kf7 {[%clk 0:01:09]} 20. Bg6+ {[%clk 0:00:53]}  hxg6 {[%clk 0:01:07]} 21. Qxg6+ {[%clk 0:00:53]}  Ke7 {[%clk 0:01:07]} 22. Re1 {[%clk 0:00:43]}  Qd6 {[%clk 0:00:40]} 23. Be5 {[%clk 0:00:29]}  Qd8 {[%clk 0:00:17]} 24. Bc7 {[%clk 0:00:12]}  Qxc7 {[%clk 0:00:14]} 25. Ng8+ {[%clk 0:00:12]}  Rxg8 {[%clk 0:00:13]} 26. Qxe6+ {[%clk 0:00:12]}  Kd8 {[%clk 0:00:13]} 27. Qe8# {[%clk 0:00:12]} 1-0


[Site "https://www.chess.com"]

[Event "Titled Tuesday Blitz December 13 Late 2022"]
[White "Danielyan, Vahe"]
[Black "Antonova, Nadezhda"]
[WhiteFideId "13304828"]
[BlackFideId "14700182"]
[WhiteElo "2423"]
[BlackElo "1814"]
[Result "1/2-1/2"]
[Round "02"]
[TimeControl "180+1"]
[Date "2022.12.14"]
[WhiteClock "0:00:12"]
[BlackClock "0:00:02"]

1. d4 {[%clk 0:03:00]}  Nf6 {[%clk 0:02:57]} 2. Nc3 {[%clk 0:03:01]}  d5 {[%clk 0:02:52]} 3. Bf4 {[%clk 0:02:56]}  g6 {[%clk 0:02:45]} 4. e3 {[%clk 0:02:57]}  Bg7 {[%clk 0:02:45]} 5. Be2 {[%clk 0:02:55]}  O-O {[%clk 0:02:45]} 6. h4 {[%clk 0:02:55]}  h6 {[%clk 0:02:43]} 7. Nf3 {[%clk 0:02:54]}  c5 {[%clk 0:02:43]} 8. dxc5 {[%clk 0:02:53]}  Nc6 {[%clk 0:02:38]} 9. O-O {[%clk 0:02:52]}  e6 {[%clk 0:02:11]} 10. Nd4 {[%clk 0:02:50]}  Nd7 {[%clk 0:02:06]} 11. Nxc6 {[%clk 0:02:49]}  bxc6 {[%clk 0:02:06]} 12. Bd6 {[%clk 0:02:50]}  Re8 {[%clk 0:02:04]} 13. e4 {[%clk 0:02:49]}  Qxh4 {[%clk 0:01:58]} 14. g3 {[%clk 0:02:41]}  Qd8 {[%clk 0:01:53]} 15. Bf3 {[%clk 0:02:41]}  Ba6 {[%clk 0:01:50]} 16. Re1 {[%clk 0:02:41]}  Qa5 {[%clk 0:01:41]} 17. e5 {[%clk 0:02:37]}  Nxc5 {[%clk 0:01:36]} 18. a3 {[%clk 0:02:33]}  Nd7 {[%clk 0:01:31]} 19. b4 {[%clk 0:02:30]}  Qd8 {[%clk 0:01:30]} 20. Ne2 {[%clk 0:02:31]}  Nxe5 {[%clk 0:01:24]} 21. Bxe5 {[%clk 0:02:26]}  Bxe5 {[%clk 0:01:24]} 22. Nd4 {[%clk 0:02:27]}  Qf6 {[%clk 0:01:13]} 23. c3 {[%clk 0:02:26]}  Rac8 {[%clk 0:01:02]} 24. Qa4 {[%clk 0:02:08]}  Bxd4 {[%clk 0:00:56]} 25. cxd4 {[%clk 0:02:09]}  Bb5 {[%clk 0:00:51]} 26. Qd1 {[%clk 0:02:09]}  Bc4 {[%clk 0:00:43]} 27. Kg2 {[%clk 0:02:09]}  a5 {[%clk 0:00:42]} 28. bxa5 {[%clk 0:02:09]}  Ra8 {[%clk 0:00:42]} 29. Qd2 {[%clk 0:02:09]}  Ra6 {[%clk 0:00:40]} 30. Rab1 {[%clk 0:02:07]}  Kg7 {[%clk 0:00:37]} 31. Rb7 {[%clk 0:02:05]}  Rea8 {[%clk 0:00:34]} 32. Bg4 {[%clk 0:02:06]}  Qg5 {[%clk 0:00:15]} 33. Qxg5 {[%clk 0:02:03]}  hxg5 {[%clk 0:00:15]} 34. Bxe6 {[%clk 0:02:04]}  Rf8 {[%clk 0:00:14]} 35. Re3 {[%clk 0:01:48]}  Rxa5 {[%clk 0:00:14]} 36. Bd7 {[%clk 0:01:49]}  Rfa8 {[%clk 0:00:12]} 37. Bxc6 {[%clk 0:01:48]}  Rxa3 {[%clk 0:00:12]} 38. Ree7 {[%clk 0:01:49]}  Rf8 {[%clk 0:00:10]} 39. Bd7 {[%clk 0:01:49]}  Kf6 {[%clk 0:00:10]} 40. Bg4 {[%clk 0:01:48]}  Kg7 {[%clk 0:00:08]} 41. Be6 {[%clk 0:01:48]}  Kf6 {[%clk 0:00:08]} 42. Bxf7 {[%clk 0:01:48]}  Ra2 {[%clk 0:00:06]} 43. Be8 {[%clk 0:01:48]}  Bd3 {[%clk 0:00:04]} 44. Bf7 {[%clk 0:00:54]}  Be4+ {[%clk 0:00:04]} 45. Kf1 {[%clk 0:00:54]}  Bf3 {[%clk 0:00:03]} 46. Re6+ {[%clk 0:00:52]}  Kg7 {[%clk 0:00:03]} 47. Bxg6+ {[%clk 0:00:48]}  Kh8 {[%clk 0:00:02]} 48. Bb1 {[%clk 0:00:46]}  Ra1 {[%clk 0:00:02]} 49. Rh6+ {[%clk 0:00:45]}  Kg8 {[%clk 0:00:02]} 50. Rg6+ {[%clk 0:00:46]}  Kh8 {[%clk 0:00:02]} 51. Rxg5 {[%clk 0:00:42]}  Be4 {[%clk 0:00:01]} 52. Rh5+ {[%clk 0:00:35]}  Kg8 {[%clk 0:00:02]} 53. Rg5+ {[%clk 0:00:36]}  Kh8 {[%clk 0:00:03]} 54. Ke2 {[%clk 0:00:28]}  Rxb1 {[%clk 0:00:02]} 55. Rxb1 {[%clk 0:00:27]}  Bxb1 {[%clk 0:00:02]} 56. Rxd5 {[%clk 0:00:27]}  Kg7 {[%clk 0:00:02]} 57. Re5 {[%clk 0:00:27]}  Bg6 {[%clk 0:00:02]} 58. Ke3 {[%clk 0:00:27]}  Rf7 {[%clk 0:00:03]} 59. f4 {[%clk 0:00:27]}  Rd7 {[%clk 0:00:03]} 60. d5 {[%clk 0:00:27]}  Ra7 {[%clk 0:00:03]} 61. g4 {[%clk 0:00:27]}  Ra3+ {[%clk 0:00:03]} 62. Kf2 {[%clk 0:00:27]}  Ra2+ {[%clk 0:00:03]} 63. Kg3 {[%clk 0:00:27]}  Ra3+ {[%clk 0:00:03]} 64. Kh4 {[%clk 0:00:28]}  Ra1 {[%clk 0:00:03]} 65. Kg5 {[%clk 0:00:29]}  Rf1 {[%clk 0:00:02]} 66. Re7+ {[%clk 0:00:29]}  Bf7 {[%clk 0:00:02]} 67. d6 {[%clk 0:00:30]}  Kf8 {[%clk 0:00:02]} 68. f5 {[%clk 0:00:27]}  Rd1 {[%clk 0:00:02]} 69. Ra7 {[%clk 0:00:19]}  Rxd6 {[%clk 0:00:02]} 70. Ra8+ {[%clk 0:00:20]}  Be8 {[%clk 0:00:02]} 71. Ra1 {[%clk 0:00:21]}  Rd4 {[%clk 0:00:02]} 72. Rh1 {[%clk 0:00:22]}  Kg7 {[%clk 0:00:02]} 73. f6+ {[%clk 0:00:22]}  Kg8 {[%clk 0:00:02]} 74. Re1 {[%clk 0:00:21]}  Bd7 {[%clk 0:00:02]} 75. Re7 {[%clk 0:00:21]}  Rxg4+ {[%clk 0:00:02]} 76. Kh6 {[%clk 0:00:21]}  Rf4 {[%clk 0:00:02]} 77. Kg6 {[%clk 0:00:20]}  Rg4+ {[%clk 0:00:02]} 78. Kh6 {[%clk 0:00:20]}  Rf4 {[%clk 0:00:02]} 79. Rg7+ {[%clk 0:00:18]}  Kf8 {[%clk 0:00:02]} 80. Rxd7 {[%clk 0:00:10]}  Rxf6+ {[%clk 0:00:02]} 81. Kg5 {[%clk 0:00:11]}  Re6 {[%clk 0:00:02]} 82. Rd8+ {[%clk 0:00:12]}  Re8 {[%clk 0:00:02]} 83. Rxe8+ {[%clk 0:00:12]}  Kxe8 {[%clk 0:00:02]} 1/2-1/2


[Site "https://www.chess.com"]

[Event "Titled Tuesday Blitz December 13 Late 2022"]
[White "Deac, Bogdan-Daniel"]
[Black "Oro, Faustino"]
[WhiteFideId "1226380"]
[BlackFideId "20000197"]
[WhiteElo "2649"]
[BlackElo "1984"]
[Result "1-0"]
[Round "02"]
[TimeControl "180+1"]
[Date "2022.12.13"]
[WhiteClock "0:00:05"]
[BlackClock "0:00:03"]

1. b3 {[%clk 0:03:00]}  d5 {[%clk 0:02:51]} 2. Bb2 {[%clk 0:03:01]}  Nf6 {[%clk 0:02:50]} 3. e3 {[%clk 0:03:00]}  c5 {[%clk 0:02:50]} 4. Nf3 {[%clk 0:02:59]}  Nc6 {[%clk 0:02:49]} 5. Bb5 {[%clk 0:02:59]}  Bd7 {[%clk 0:02:48]} 6. O-O {[%clk 0:02:58]}  g6 {[%clk 0:02:46]} 7. Bxf6 {[%clk 0:02:55]}  exf6 {[%clk 0:02:46]} 8. Nc3 {[%clk 0:02:56]}  Be6 {[%clk 0:02:41]} 9. Bxc6+ {[%clk 0:02:54]}  bxc6 {[%clk 0:02:41]} 10. Na4 {[%clk 0:02:54]}  Bd6 {[%clk 0:02:37]} 11. d3 {[%clk 0:02:54]}  O-O {[%clk 0:02:36]} 12. c4 {[%clk 0:02:54]}  Qe7 {[%clk 0:02:35]} 13. Rc1 {[%clk 0:02:52]}  Rac8 {[%clk 0:02:33]} 14. h3 {[%clk 0:02:51]}  Rfd8 {[%clk 0:02:32]} 15. Re1 {[%clk 0:02:51]}  Rd7 {[%clk 0:02:19]} 16. Qe2 {[%clk 0:02:45]}  Rcd8 {[%clk 0:02:18]} 17. e4 {[%clk 0:02:41]}  dxc4 {[%clk 0:02:07]} 18. dxc4 {[%clk 0:02:41]}  Bf4 {[%clk 0:02:06]} 19. Rcd1 {[%clk 0:02:41]}  Kg7 {[%clk 0:02:03]} 20. Rxd7 {[%clk 0:02:26]}  Rxd7 {[%clk 0:02:04]} 21. e5 {[%clk 0:02:24]}  f5 {[%clk 0:02:00]} 22. h4 {[%clk 0:02:18]}  h5 {[%clk 0:01:45]} 23. Rd1 {[%clk 0:02:14]}  Bh6 {[%clk 0:01:35]} 24. Rxd7 {[%clk 0:02:09]}  Bxd7 {[%clk 0:01:36]} 25. Qd3 {[%clk 0:02:09]}  Bf4 {[%clk 0:01:15]} 26. g3 {[%clk 0:01:37]}  Bc1 {[%clk 0:01:06]} 27. Qd6 {[%clk 0:01:34]}  Qe8 {[%clk 0:00:49]} 28. Nxc5 {[%clk 0:01:29]}  Bc8 {[%clk 0:00:49]} 29. Ng5 {[%clk 0:01:26]}  Bb2 {[%clk 0:00:43]} 30. f4 {[%clk 0:01:07]}  Kg8 {[%clk 0:00:38]} 31. Nd3 {[%clk 0:00:32]}  Bc3 {[%clk 0:00:31]} 32. Kf1 {[%clk 0:00:32]}  Ba6 {[%clk 0:00:28]} 33. Nc5 {[%clk 0:00:17]}  Bc8 {[%clk 0:00:21]} 34. e6 {[%clk 0:00:11]}  f6 {[%clk 0:00:17]} 35. Nf3 {[%clk 0:00:10]}  Bb4 {[%clk 0:00:16]} 36. Nd4 {[%clk 0:00:10]}  Bxc5 {[%clk 0:00:13]} 37. Qxc5 {[%clk 0:00:10]}  Bxe6 {[%clk 0:00:14]} 38. Qxc6 {[%clk 0:00:10]}  Bd7 {[%clk 0:00:14]} 39. Qd5+ {[%clk 0:00:10]}  Kh7 {[%clk 0:00:13]} 40. Kf2 {[%clk 0:00:10]}  Bc8 {[%clk 0:00:13]} 41. c5 {[%clk 0:00:09]}  Qe7 {[%clk 0:00:11]} 42. b4 {[%clk 0:00:06]}  Bb7 {[%clk 0:00:09]} 43. c6 {[%clk 0:00:06]}  Bc8 {[%clk 0:00:10]} 44. Qc5 {[%clk 0:00:06]}  Qe4 {[%clk 0:00:10]} 45. Qxa7+ {[%clk 0:00:06]}  Kh6 {[%clk 0:00:09]} 46. Qc5 {[%clk 0:00:06]}  Kh7 {[%clk 0:00:07]} 47. b5 {[%clk 0:00:06]}  Qd3 {[%clk 0:00:07]} 48. Nf3 {[%clk 0:00:06]}  Kh6 {[%clk 0:00:04]} 49. b6 {[%clk 0:00:05]}  Qd8 {[%clk 0:00:02]} 50. b7 {[%clk 0:00:05]}  Be6 {[%clk 0:00:03]} 51. c7 {[%clk 0:00:05]} 1-0


[Site "https://www.chess.com"]